Cogmind - Beta 10.1 @@@ ROGUE MODE // 2021.07.04 @ 15:51:48 Player: W-ALTER Result: Destroyed by G-34 Mercenary with Small Laser Performance ------------- Evolutions (0) 0 Regions Visited (2) 400 Robots Destroyed (8) 40 Value Destroyed (71) 71 Prototype IDs (1) 20 Alien Tech Used (0) 0 Bonus (0) 0 TOTAL SCORE: 531 Bonus ------- None Cogmind --------- Core Integrity 0/250 Matter 264/300 Energy 75/100 System Corruption 0% Temperature Cool (15) Movement Rolling (80) Location -10/Mines Parts ------- > --- POWER (1) -------- (None) > --- PROPULSION (2) --- Wheel Wheel > --- UTILITY (2) ------ Improved Terrain Scanner Seismic Analyzer > --- WEAPON (2) ------- Beam Cannon Rocket Launcher > --- INVENTORY (4) ---- Small Storage Unit Experimental Sensor Array Signal Interpreter Core Shielding Peak State ------------ > --- POWER ------------ Light Ion Engine > --- PROPULSION ------- Wheel Wheel > --- UTILITY ---------- Experimental Sensor Array Seismic Analyzer > --- WEAPON ----------- Beam Cannon Beam Cannon > --- INVENTORY -------- Small Storage Unit Improved Terrain Scanner Core Shielding [Rating: 12] Favorites ----------- Power Light Ion Engine Engine Light Ion Engine Propulsion Wheel Wheel Wheel Flight Unit Flight Unit Utility Seismic Analyzer Device Improved Terrain Scanner Storage Small Storage Unit Processor Seismic Analyzer Protection Core Shielding Weapon Beam Cannon Energy Cannon Beam Cannon Ballistic Gun Assault Rifle Launcher Grenade Launcher Build | -11 -10 -10 ------- Run | Scr Mat Min Slots Evolved . | . . . Power . | . . . Propulsion . | . . . Utility . | . . . Weapon . | . . . Parts Attached 20 | 5 8 7 Power 3 | 2 1 . Engine 3 | 2 1 . Core . | . . . Reactor . | . . . Propulsion 5 | 2 1 2 Treads . | . . . Leg . | . . . Wheel 4 | 2 . 2 Hover . | . . . Flight 1 | . 1 . Utility 7 | 1 2 4 Device 4 | . . 4 Storage 1 | 1 . . Processor 1 | . 1 . Hackware . | . . . Protection 1 | . 1 . Artifact . | . . . Weapon 5 | . 4 1 Energy Gun . | . . . Energy Cannon 2 | . 2 . Ballistic Gun 1 | . 1 . Ballistic Cannon . | . . . Launcher 2 | . 1 1 Special Weapon . | . . . Impact Weapon . | . . . Slashing Weapon . | . . . Piercing Weapon . | . . . Special Melee Weapon . | . . . Unidentified Prototypes 1 | . . 1 Parts Lost 5 | . 4 1 Power 1 | . . 1 Propulsion 2 | . 2 . Utility . | . . . Weapon 2 | . 2 . Highest Loss Streak 4 | . 4 1 Average Slot Usage (%) 94 | . 73 97 Engine 13 | . 10 13 Wheel 23 | . 20 24 Flight 1 | . 3 1 Device 11 | . . 13 Processor 13 | . 12 14 Protection 1 | . 5 . Energy Cannon 24 | . 3 28 Naked Turns . | . . . Heaviest Build 12 | 7 12 10 Greatest Support 32 | 32 32 20 Greatest Overweight (x) 2 | . 2 2 Average Overweight (x) . | . . . Largest Inventory Capacity 6 | 6 6 4 Average Capacity 4 | 5 4 4 Most Carried 4 | 3 4 4 Average Carried 2 | . 1 2 Final Capacity 6 | 6 4 4 Final Carried 4 | 1 2 4 Class Distribution -------------------- 100% | Mutant Dominant Class ---------------- Mutant | -10/Materials Mutant | -10/Mines Resources | -11 -10 -10 ----------- Run | Scr Mat Min Matter Collected 338 | 247 26 65 Remotely . | . . . Salvage Created 110 | . 77 33 Parts 24 | . 16 8 Haulers Intercepted . | . . . Recyclers Shooed . | . . . Parts Field Recycled . | . . . Retrieved Matter . | . . . Parts Self-Destructed . | . . . Prevented . | . . . Kills | -11 -10 -10 ------- Run | Scr Mat Min Combat Hostiles Destroyed 1 | . 1 . Melee 1 | . 1 . Classes Destroyed 3 | . 3 . Builder 4 | . 4 . Tunneler 3 | . 1 2 Swarmer 1 | . 1 . Best Kill Streak 5 | . 5 1 Combat Bots Only 1 | . 1 . Max Kills in Single Turn 4 | . 4 1 Gunslinging . | . . . Exploded . | . . . Melee 1 | . 1 . Uniques/NPCs Destroyed . | . . . Combat | -11 -10 -10 -------- Run | Scr Mat Min Damage Taken 644 | . 503 141 Core 251 | . 185 66 Absorbed by Shields . | . . . Core Remaining (%) 100 | 100 . . Volleys Fired 9 | . 4 5 Largest 2 | . 2 2 Hottest 120 | . 120 120 Shots Fired 18 | . 8 10 Gun 2 | . 2 . Cannon 14 | . 4 10 Launcher 2 | . 2 . Special . | . . . Kinetic 2 | . 2 . Thermal 14 | . 4 10 Explosive 2 | . 2 . Electromagnetic . | . . . Robot Hit Streak 5 | . 3 5 Robot Miss Streak 2 | . 2 1 Penetration Max . | . . . Secondary Targets . | . . . Shots Hit Robots 10 | . 4 6 Core Hits 11 | . 9 2 Critical Hits . | . . . Critical Kills . | . . . Critical Parts Destroyed . | . . . Melee Attacks . | . . . Impact . | . . . Slashing . | . . . Piercing . | . . . Sneak Attacks . | . . . Combat Hostiles . | . . . Follow-up Attacks . | . . . Damage Inflicted 360 | . 236 124 Guns 24 | . 24 . Cannons 124 | . . 124 Explosions 200 | . 200 . Melee . | . . . Ramming 12 | . 12 . Kinetic 24 | . 24 . Thermal 179 | . 55 124 Explosive 145 | . 145 . Electromagnetic . | . . . Impact . | . . . Slashing . | . . . Piercing . | . . . Highest Corruption . | . . . Average Corruption . | . . . Corruption Purged . | . . . Overload Shots . | . . . Overflow Damage 40 | . 40 . Projectiles . | . . . Explosions 40 | . 40 . Melee . | . . . Knockbacks . | . . . Impact . | . . . Kinetic . | . . . Secondary . | . . . Self-Inflicted Damage 127 | . 127 . Shots 3 | . 3 . Rammed 8 | . 8 . Targets Rammed 8 | . 8 . Kicked . | . . . Crushed . | . . . Highest Temperature 204 | . 63 204 Average Temperature 65 | . 32 77 Received Heat Transfer 216 | . 132 84 Siege Activations . | . . . Robots Corrupted . | . . . Combat Hostiles . | . . . Parts Fried . | . . . Impact Corruptions . | . . . Robots Melted . | . . . Combat Hostiles . | . . . Parts Melted . | . . . Heat Transferred 309 | . 50 259 Parts Sabotaged . | . . . Parts Stolen . | . . . Parts Stripped . | . . . Power Chain Reactions . | . . . Missiles Intercepted . | . . . Alert | -11 -10 -10 ------- Run | Scr Mat Min Peak Influence 87 | . 87 43 Initial 33 | . . 33 Average 17 | . 40 15 Maximum Alert Level . | . . . Low Security (%) 100 | 100 100 100 Level 1 . | . . . Level 2 . | . . . Level 3 . | . . . Level 4 . | . . . Level 5 . | . . . High Security . | . . . Max Security . | . . . Squads Dispatched 2 | . 2 . Investigation 1 | . 1 . Extermination . | . . . Reinforcement 1 | . 1 . Assault . | . . . Garrison . | . . . Intercept . | . . . Construction Impeded . | . . . Haulers Reinforced . | . . . Stealth | -11 -10 -10 --------- Run | Scr Mat Min Distress Signals 2 | . 2 . Communications Jammed . | . . . Distress Signals . | . . . Times Spotted 9 | . 7 2 Peak Tracking Total 5 | . 5 2 Tactical Retreats . | . . . Traps | -11 -10 -10 ------- Run | Scr Mat Min Traps Triggered . | . . . Indirectly . | . . . Trap Hack Attempts . | . . . Triggered . | . . . Disarmed 6 | . 6 . Reprogrammed . | . . . Reused . | . . . Traps Extracted . | . . . Installed . | . . . Triggered . | . . . Machines | -11 -10 -10 ---------- Run | Scr Mat Min Machines Disabled 2 | . 2 . Max in Single Turn 2 | . 2 . Machines Sabotaged . | . . . Garrisons Compromised . | . . . Overloaded Fab Kills . | . . . Fab Network Shutdowns . | . . . Hacking | -11 -10 -10 --------- Run | Scr Mat Min Machines Accessed 2 | . 2 . Terminals 2 | . 2 . Fabricators . | . . . Repair Stations . | . . . Recycling Units . | . . . Scanalyzers . | . . . Garrison Access . | . . . Total Hacks 4 | . 4 . Successful 2 | . 2 . Failed 2 | . 2 . Catastrophic 1 | . 1 . Database Lockouts . | . . . Manual . | . . . Terminals 4 | . 4 . Fabricators . | . . . Repair Stations . | . . . Recycling Units . | . . . Scanalyzers . | . . . Garrison Access . | . . . Terminal Hacks 2 | . 2 . Disarm Traps 1 | . 1 . Registered Components 1 | . 1 . Fabricator Hacks . | . . . Repair Station Hacks . | . . . Recycling Unit Hacks . | . . . Scanalyzer . | . . . Garrison Access Hacks . | . . . Unauthorized Hacks . | . . . Terminals . | . . . Fabricators . | . . . Repair Stations . | . . . Recycling Units . | . . . Scanalyzers . | . . . Garrison Access . | . . . Data Cores Recovered . | . . . Used . | . . . Hacking Detections 2 | . 2 . Full Trace Events 1 | . 1 . Feedback Events . | . . . Feedback Blocked . | . . . Robot Schematics Acquired . | . . . Robots Built . | . . . Matter . | . . . Time . | . . . Total Robot Build Rating . | . . . Part Schematics Acquired . | . . . Parts Built . | . . . Matter . | . . . Time . | . . . Total Part Build Rating . | . . . Parts Repaired . | . . . Time . | . . . Parts Recycled . | . . . Recycled Matter . | . . . Retrieved Matter . | . . . Retrieved Components . | . . . Parts Scanalyzed . | . . . Part Schematics Acquired . | . . . Parts Damaged . | . . . Bothacking | -11 -10 -10 ------------ Run | Scr Mat Min Used RIF Installer . | . . . Robots Hacked . | . . . Non-combat . | . . . Combat . | . . . Robot Hacks Applied . | . . . Relay Couplers Released . | . . . Robots Rewired . | . . . Allies Hacked . | . . . Hacks Repelled . | . . . Allies | -11 -10 -10 -------- Run | Scr Mat Min Total Allies . | . . . Largest Group . | . . . Highest-Rated Group . | . . . Highest-Rated Ally . | . . . Total Orders . | . . . Ally Attacks . | . . . Total Damage . | . . . Kills . | . . . Allies Corrupted . | . . . Allies Melted . | . . . Intel | -11 -10 -10 ------- Run | Scr Mat Min Robot Analysis Total . | . . . Derelict Logs Recovered . | . . . Drone Launches . | . . . Drone Recoveries . | . . . Exploration | -11 -10 -10 ------------- Run | Scr Mat Min Turns Passed 1256 | 46 156 1054 Spaces Moved 416 | 38 129 249 Core 7 | 7 . . Treads . | . . . Legs . | . . . Wheels 325 | 31 92 202 Hover . | . . . Flight 84 | . 37 47 Fastest Speed 40 | 50 40 80 Average Speed 98 | 90 92 102 Slowest Speed 200 | 100 200 200 Overloaded Moves . | . . . Propulsion Burnouts . | . . . Robots Hopped . | . . . Cave-ins Triggered . | . . . Exploration Rate (%) 27 | 3 27 53 Regions Visited 2 Branch Regions 1 Pre-discovered Areas . | . . . Known Exits Taken . | . . . Unknown Exits Taken 2 | 1 1 . Scrap Searched 1 | . . 1 Spaces Dug . | . . . Terrain Destroyed 50 | . 50 . Melee . | . . . Projectile . | . . . AOE 50 | . 50 . Terrain Rammed . | . . . Walls Destroyed . | . . . Machines Disabled . | . . . Actions | -11 -10 -10 --------- Run | Scr Mat Min Total 1248 | 49 159 1040 Wait 770 | . 2 768 Move 414 | 37 128 249 Hop . | . . . Pick Up 18 | 6 7 5 Fast Attach 1 | . . 1 Attach 19 | 5 8 6 Detach 5 | . 2 3 Swap . | . . . Drop 4 | 1 . 3 Fire 9 | . 4 5 Melee . | . . . Ram 8 | . 8 . Kick . | . . . Crush . | . . . Escape Stasis . | . . . Rewire . | . . . Trap . | . . . Miscellaneous . | . . . Route ------- -11/Scrapyard -10/Materials -10/Mines (discovered 1 exit: [*Mat]) History --------- Turn | Location | Event 16 | -11/Scrapyard | Discovered new exit (range 15) 47 | -11/Scrapyard | Entered Materials 163 | -10/Materials | Core integrity fell below 50% 190 | -10/Materials | Discovered new exit (range 6) 199 | -10/Materials | Lost 4 parts (2n2w) 203 | -10/Materials | Entered Mines 300 | -10/Mines | Build established: Mutant 481 | -10/Mines | Discovered new exit (range 5) 694 | -10/Mines | Found a damaged Exp. Sensor Array with a note attached 698 | -10/Mines | Found Prototype Device 699 | -10/Mines | Identified Exp. Sensor Array 1238 | -10/Mines | Core integrity fell below 20% 1250 | -10/Mines | Received a Rocket Launcher from a helpful Derelict 1257 | -10/Mines | Destroyed by G-34 Mercenary with Small Laser Last Messages --------------- 01144_ Searching scrap... 01144_ Found Signal Interpreter. 01144_ Found 32 Matter. 01145_ Acquired 32 matter. 01150_ Acquired Signal Interpreter. 01237_ Lgt. Ion Engine destroyed. 01244_ A derelict emerges from the shadows. 01245_ TD-UJL(g): "Some of my friends down here think you need a mining laser when you travel the depths." 01246_ TD-UJL(g): "You know what I say? NO!" 01247_ TD-UJL(g): "Everyone knows a good old rocket launcher goes a long way." 01248_ TD-UJL(g): "Need to get rid of a swarm? Done. Need a big hole in the wall? Done." 01249_ TD-UJL(g): "Need a small hole in the wall? Leave that to the mining laser wimps, I say!" 01250_ TD-UJL(g): "Would you like a rocket launcher? I know I would if I were you, so I'm going to lend you mine." 01250_ TD-UJL(g) slips back into the shadows. 01253_ Dropped Beam Cannon. 01254_ Acquired Rocket Launcher. Map ----- +----------------------------------------------------+ | ??????????????????????????????# ##???#?## #?#?## | | ?????????????????????????????## ##???### #?#### | | ?????????????????????????????# ###?### ##### | | ????????????????????????????## ##?#?# ##### | | ????????????????????????????## ##### ###### | | ???????????????????????????## ##?# ####### | | ??????????????????????????## """ ### ####### | | ??????????????????????????# """ ## #????## | | ?????????????????????????## """ # ####### | | ????????????????????????## # #####?# | | ????????????????????????# # ######? | | ????????????????????????# ## ####### | | ??????????????????####### ### ####### | | ??????????????????# ### ##?#### | | ??????????????????# ### ######? | | ??????????????????# ##### ##### ## ####### | | ????????????????#???????### ###??## #?##### | | ????????????????????????#?####??#?## ########### | | ???????????????????????????###??### #??#?#???## | | ?????????????????????????????##?### ##?######## | | ?????????????#????????????#?####??# ####?###### | | ???????????????? ?????????#?###?#### ############ | | ????????????????????###???#?##?############# ## | | ???????????? ???#??## ##??#?#??###?####### # | | ???????????????????# ######?########## | | ??????????????????## @ ] #####?# | | ????????????#?????# g ### | | ??????????????????# g## ### ## ## | | ??????????????????# ### ### ## ### | | ??????????????????# #### ### ## #### # | | ?????????????????# ## ##### ## ######## | | ???????????????## ############## ## ######## | | ???????????????# ############### ## ###### | | ???????????????# ##?############# #### ###### | | ??????????????### #?#########?##### #### ###### | | ????????????????#####??#?####??###### #### ###### | | ?????????????????????##??######## #### ###### | | ??????????????????????##??###?## ### ###### | | ?????????????????????#?###??#?## ## | | ????????????????????????####?#### ## ######## | | ???????????????????????####?########## ######## | | ??????????????????????##??######?###?# ####### | | ?????????????????????????############## ###### | | ?????????????????????????##??########?# ##### | | ????????????????????????#??#?##?####### ####?? | | ??????????????????????????###??######## ####?### | | ????????????????????????##??####?###??# ###?####? | | ????????????????????????#?#?##?????###########??## | | ??????????????????????????##??#?#?###??#####?#?### | | ?????????????????????????#??#?#?##?#?####?#?###### | +----------------------------------------------------+ Best States ------------- Heat Dissipation 25 Energy Generation 10 Energy Capacity 250 Matter Stores 297 Matter Capacity 300 Sight Range 16 Robot Scan Range 30 Terrain Scan Range 16 Terrain Scan Density 60 Core Shielding 20 Evasion (%) 62 Item Schematics ----------------- None Robot Schematics ------------------ None Fabricated ------------ Nothing Alien Tech Used ----------------- None Achievements -------------- None Challenges ------------ None Game ------ Seed MissileOpticalShotgun Manual? 0 Play Time 00:08:28 Cumulative 3.9 hours Start 2021.07.03 @ 22:00:37 End 2021.07.04 @ 15:51:48 Sessions 3 Manual Loads 0 Difficulty Rogue Special Mode None Game No. 8 Rogue 8 Adventurer 0 Explorer 0 Win Type - Total 0 Types 0/0/0/0/0/0/0/0/0 Lore% 12 Gallery% 8 Achievement% 10 Wizard Run 0 Options --------- ASCII 0 Keyboard 0 Movement Mouse Keybinds 0 Fullscreen 1 Font 12/Smallcaps Map View 83x54 Tactical HUD 1 Map Filters NONE Filters NONE Steam X RUN: 7d5e348b-0052-4f98-9f5f-4c36062b20cd